fUST/lending_fUST_20250919
["ID","MTS","AMOUNT","RATE_DAILY","PERIOD"]
[386072494,1758211842841,-157.47220801,0.00023673,3]
[386072496,1758211842851,-151.0,0.00023673,3]
[386072497,1758211842860,-151.0,0.00023673,3]
[386072498,1758211842948,-151.0,0.00023673,3]
[386072499,1758211842960,-151.0,0.00023673,2]
[386072500,1758211842969,-151.0,0.00023673,3]
[386072502,1758211842980,-151.0,0.00023673,3]
[386072504,1758211842989,-480.0,0.00023673,3]
[386072506,1758211842999,-480.0,0.00023673,3]
[386072508,1758211843008,-480.0,0.00023673,3]
[386072510,1758211843017,-480.0,0.00023673,3]
[386072512,1758211843027,-370.09329399,0.00023673,3]
[386072514,1758211843036,-358.56839668,0.00023673,3]
[386072516,1758211843046,-401.17972931,0.00023673,3]
[386072518,1758211843055,-2381.6,0.00023673,3]
[386072520,1758211843065,-489.91,0.00023673,3]
[386072522,1758211843074,-480.0,0.00023673,3]
[386072524,1758211843085,-500.0,0.00023674,3]
[386072526,1758211843094,-584.00000807,0.00023721,2]
[386072528,1758211843105,-1000.0,0.00023721,2]
[386072530,1758211843115,-1000.0,0.00023721,2]
[386072532,1758211843124,-1000.0,0.00023721,2]
[386072534,1758211843133,-500.0,0.00023721,2]
[386072536,1758211843143,-1000.0,0.00023721,2]
[386072538,1758211843152,-1000.0,0.00023721,2]
[386072540,1758211843162,-1000.0,0.00023721,2]
[386072542,1758211843171,-500.0,0.00023721,2]
[386072544,1758211843181,-1000.0,0.00023721,2]
[386072546,1758211843190,-1000.0,0.00023721,2]
[386072548,1758211843199,-618.42927166,0.00023763,2]
[386072550,1758211843209,-1090.01102934,0.00023882,2]
[386072552,1758211843218,-160.0,0.000239,2]
[386072553,1758211843227,-1261.4003785,0.00023917,2]
[386072556,1758211843237,-2079.26,0.00023946,2]
[386072558,1758211843247,-169.97421952,0.00023946,3]
[386072560,1758211843256,-594.57348955,0.00023946,3]
[386072562,1758211843266,-480.0,0.00023946,3]
[386072564,1758211843276,-480.0,0.00023946,3]
[386072565,1758211843285,-480.0,0.00023946,3]
[386072567,1758211843295,-480.0,0.00023946,3]
[386072570,1758211843304,-480.0,0.00023946,3]
[386072571,1758211843314,-1178.12,0.00023946,3]
[386072573,1758211843323,-480.0,0.00023946,3]
[386072575,1758211843333,-541.13,0.00023946,3]
[386072577,1758211843343,-480.0,0.00023946,3]
[386072579,1758211843353,-480.0,0.00023946,3]
[386072582,1758211843363,-221.03,0.00023946,3]
[386072584,1758211843373,-480.0,0.00023946,3]
[386072586,1758211843382,-500.0,0.00023947,3]
[386072587,1758211843391,-181.76198311,0.00023947,3]
[386072589,1758211843401,-199.02326593,0.00023947,3]
[386072591,1758211843410,-273.60301024,0.00023947,3]
[386072593,1758211843420,-151.0,0.00023947,3]
[386072595,1758211843429,-233.855084,0.00023947,2]
[386072597,1758211843439,-151.0,0.00023947,3]
[386072599,1758211843449,-199.03070636,0.00023947,3]
[386072601,1758211843458,-480.0,0.00023947,3]
[386072602,1758211843467,-480.0,0.00023947,3]
[386072603,1758211843477,-480.0,0.00023947,3]
[386072604,1758211843486,-2381.6,0.00023947,3]
[386072605,1758211843495,-480.0,0.00023947,3]
[386072606,1758211843504,-500.0,0.00023948,3]
[386072607,1758211843513,-1000.0,0.00023954,2]
[386072608,1758211843522,-495.9798274,0.00023974,2]
[386072609,1758211843532,-1000.0,0.00023974,2]
[386072611,1758211843541,-82303.74313714,0.0002399,2]
[386072613,1758211843551,-3000.0,0.0002422,2]
[386072615,1758211843560,-480.0,0.0002422,3]
[386072617,1758211843570,-480.0,0.0002422,3]
[386072619,1758211843579,-480.0,0.0002422,3]
[386072621,1758211843590,-480.0,0.0002422,3]
[386072623,1758211843600,-1178.12,0.0002422,3]
[386072625,1758211843609,-480.0,0.0002422,3]
[386072628,1758211843619,-541.13,0.0002422,3]
[386072631,1758211843628,-480.0,0.0002422,3]
[386072633,1758211843638,-480.0,0.0002422,3]
[386072635,1758211843647,-480.0,0.0002422,3]
[386072637,1758211843657,-500.0,0.00024221,3]
[386072639,1758211843666,-180.75826157,0.00024221,3]
[386072641,1758211843675,-151.0,0.00024221,3]
[386072643,1758211843684,-480.0,0.00024221,3]
[386072644,1758211843694,-480.0,0.00024221,3]
[386072646,1758211843703,-2381.6,0.00024221,3]
[386072648,1758211843713,-539.24311429,0.00024268,2]
[386072650,1758211843723,-1500.0,0.00024268,2]
[386072652,1758211843732,-794.03775299,0.00024268,2]
[386072655,1758211843742,-1000.0,0.00024268,2]
[386072656,1758211843752,-1500.0,0.00024268,2]
[386072658,1758211843762,-1500.0,0.00024268,2]
[386072661,1758211843771,-1500.0,0.00024268,2]
[386072663,1758211843781,-1500.0,0.00024268,2]
[386072665,1758211843790,-1261.4003785,0.00024362,2]
[386072667,1758211843800,-260.0,0.00024448,2]
[386072668,1758211843809,-4000.0,0.00024494,2]
[386072670,1758211843819,-480.0,0.00024494,3]
[386072672,1758211843828,-480.0,0.00024494,3]
[386072674,1758211843839,-480.0,0.00024494,3]
[386072676,1758211843849,-480.0,0.00024494,3]
[386072678,1758211843858,-1178.12,0.00024494,3]
[386072680,1758211843867,-531.14055566,0.00024494,3]
[386072682,1758211843877,-541.13,0.00024494,3]
[386072684,1758211843890,-480.0,0.00024494,3]
[386072686,1758211843900,-480.0,0.00024494,3]
[386072688,1758211843909,-500.0,0.00024495,3]
[386072690,1758211843919,-187.9878533,0.00024495,3]
[386072692,1758211843929,-480.0,0.00024495,3]
[386072694,1758211843939,-2381.6,0.00024495,3]
[386072696,1758211843949,-200.0,0.0002451,7]
[386072698,1758211843960,-501.85680148,0.00024522,2]
[386072700,1758211843977,-500.0,0.00024658,2]
[386072702,1758211843986,-303.64,0.00024738,3]
[386072704,1758211843996,-607.28,0.00024748,3]
[386072706,1758211844006,-1214.56,0.00024758,3]
[386072708,1758211844015,-7000.0,0.00024768,3]
[386072710,1758211844025,-480.0,0.00024768,3]
[386072712,1758211844035,-480.0,0.00024768,3]
[386072714,1758211844045,-480.0,0.00024768,3]
[386072716,1758211844055,-480.0,0.00024768,3]
[386072718,1758211844065,-1178.12,0.00024768,3]
[386072720,1758211844074,-541.13,0.00024768,3]
[386072722,1758211844086,-480.0,0.00024768,3]
[386072724,1758211844096,-480.0,0.00024768,3]
[386072726,1758211844105,-500.0,0.00024769,3]
[386072728,1758211844115,-2381.6,0.00024769,3]
[386072730,1758211844124,-1261.4003785,0.00024808,2]
[386072732,1758211844134,-8315.54472507,0.00024808,2]
[386072734,1758211844144,-420.0,0.00024808,2]
[386072736,1758211844154,-2000.0,0.00024816,2]
[386072738,1758211844163,-2000.0,0.00024816,2]
[386072740,1758211844173,-2000.0,0.00024816,2]
[386072742,1758211844182,-1000.0,0.00024816,2]
[386072744,1758211844192,-2000.0,0.00024816,2]
[386072746,1758211844201,-500.0,0.00024873,2]
[386072748,1758211844211,-500.0,0.00024873,2]
[386072750,1758211844221,-500.0,0.00024873,2]
[386072752,1758211844231,-500.0,0.00024873,2]
[386072754,1758211844241,-621.301862,0.00024873,2]
[386072756,1758211844250,-500.86890652,0.00024873,2]
[386072758,1758211844260,-500.0,0.00024873,2]
[386072760,1758211844270,-568.66094406,0.00024873,2]
[386072762,1758211844280,-500.0,0.00024873,2]
[386072764,1758211844289,-500.0,0.00024873,2]
[386072766,1758211844298,-500.0,0.00024873,2]
[386072768,1758211844307,-500.0,0.00024873,2]
[386072770,1758211844316,-500.0,0.00024873,2]
[386072772,1758211844326,-500.0,0.00024873,2]
[386072774,1758211844337,-500.0,0.00024873,2]
[386072776,1758211844346,-500.0,0.00024873,2]
[386072778,1758211844355,-500.0,0.00024873,2]
[386072780,1758211844365,-500.0,0.00024873,2]
[386072782,1758211844374,-500.0,0.00024873,2]
[386072784,1758211844383,-500.0,0.00024873,2]
[386072786,1758211844392,-500.0,0.00024873,2]
[386072788,1758211844401,-500.0,0.00024873,2]
[386072790,1758211844411,-500.0,0.00024873,2]
[386072792,1758211844420,-500.0,0.00024873,2]
[386072794,1758211844430,-500.0,0.00024873,2]
[386072796,1758211844439,-500.0,0.00024873,2]
[386072798,1758211844448,-500.0,0.00024873,2]
[386072800,1758211844458,-500.0,0.00024873,2]
[386072802,1758211844467,-500.0,0.00024873,2]
[386072804,1758211844476,-500.0,0.00024873,2]
[386072806,1758211844485,-500.0,0.00024873,2]
[386072808,1758211844495,-156.30393271,0.00024873,2]
[386072809,1758211844505,-428.6533033,0.00024873,2]
[386072811,1758211844515,-500.0,0.00024873,2]
[386072814,1758211844524,-500.0,0.00024873,2]
[386072816,1758211844533,-1040.18920928,0.00024896,2]
[386072817,1758211844543,-1374.61,0.000249,7]
[386072819,1758211844552,-629172.213759,0.000249,2]
[386072821,1758211844561,-6000.0,0.00024908,3]
[386072823,1758211844570,-320.37,0.00024923,8]
[386072825,1758211844580,-500.0,0.00024932,2]
[386072828,1758211844591,-558.02957452,0.00024936,2]
[386072829,1758211844601,-462.38597522,0.00024937,2]
[386072831,1758211844610,-500.0,0.00024973,2]
[386072833,1758211844619,-589.32518645,0.00024973,2]
[386072835,1758211844628,-500.0,0.00024973,2]
[386072837,1758211844638,-500.0,0.00024973,2]
[386072839,1758211844647,-500.0,0.00024973,2]
[386072841,1758211844656,-500.0,0.00024973,2]
[386072843,1758211844665,-166.0268219,0.00024973,2]
[386072845,1758211844675,-500.0,0.00024973,2]
[386072847,1758211844684,-500.0,0.00024973,2]
[386072849,1758211844694,-500.0,0.00024973,2]
[386072851,1758211844703,-500.0,0.00024973,2]
[386072853,1758211844713,-500.0,0.00024973,2]
[386072855,1758211844722,-500.0,0.00024973,2]
[386072857,1758211844732,-360.0,0.00024996,2]
[386072859,1758211844741,-4000.0,0.00025041,3]
[386072861,1758211844751,-480.0,0.00025042,3]
[386072863,1758211844760,-480.0,0.00025042,3]
[386072865,1758211844770,-480.0,0.00025042,3]
[386072867,1758211844779,-480.0,0.00025042,3]
[386072869,1758211844788,-1178.12,0.00025042,3]
[386072871,1758211844798,-541.13,0.00025042,3]
[386072873,1758211844807,-480.0,0.00025042,3]
[386072875,1758211844816,-480.0,0.00025042,3]
[386072877,1758211844826,-500.0,0.00025043,3]
[386072879,1758211844836,-2381.6,0.00025043,3]
[386072881,1758211844846,-200.0,0.000251,7]
[386072883,1758211844855,-500.0,0.00025206,2]
[386072885,1758211844864,-412.92,0.00025241,2]
[386072887,1758211844874,-150.0,0.00025308,2]
[386072889,1758211844886,-150.0,0.00025308,2]
[386072891,1758211844896,-977.0,0.00025308,2]
[386072893,1758211844905,-2157.0,0.00025308,2]
[386072895,1758211844914,-634.0,0.00025308,2]
[386072897,1758211844924,-480.0,0.00025316,3]
[386072898,1758211844934,-480.0,0.00025316,3]
[386072900,1758211844943,-480.0,0.00025316,3]
[386072902,1758211844952,-480.0,0.00025316,3]
[386072904,1758211844962,-1178.12,0.00025316,3]
[386072906,1758211844972,-541.13,0.00025316,3]
[386072908,1758211844982,-480.0,0.00025316,3]
[386072910,1758211844991,-480.0,0.00025316,3]
[386072912,1758211845000,-500.0,0.00025317,3]
[386072922,1758211845076,-2381.6,0.00025317,3]
[386072924,1758211845093,-2500.0,0.00025364,2]
[386072926,1758211845103,-2105.88314967,0.00025364,2]
[386072928,1758211845112,-2500.0,0.00025364,2]
[386072930,1758211845122,-1703.15056871,0.00025364,2]
[386072932,1758211845131,-500.0,0.00025373,2]
[386072934,1758211845141,-500.0,0.00025373,2]
[386072936,1758211845150,-500.0,0.00025373,2]
[386072938,1758211845159,-500.0,0.00025373,2]
[386072940,1758211845169,-500.0,0.00025373,2]
[386072942,1758211845178,-500.0,0.00025373,2]
[386072944,1758211845188,-500.0,0.00025373,2]
[386072946,1758211845197,-200.0,0.0002541,7]
[386072948,1758211845207,-875.31678154,0.00025421,2]
[386072950,1758211845216,-523.51453299,0.00025421,2]
[386072952,1758211845226,-1000.0,0.00025421,2]
[386072954,1758211845235,-500.0,0.00025421,2]
[386072956,1758211845244,-500.0,0.00025421,2]
[386072958,1758211845254,-1000.0,0.00025421,2]
[386072960,1758211845263,-501.24457254,0.00025421,2]
[386072962,1758211845275,-1002.59968779,0.00025421,2]
[386072964,1758211845285,-1002.54845032,0.00025421,2]
[386072966,1758211845294,-171.33201891,0.00025421,2]
[386072968,1758211845303,-1003.82640437,0.00025421,2]
[386072970,1758211845313,-500.0,0.00025421,2]
[386072972,1758211845322,-500.0,0.00025421,2]
[386072974,1758211845332,-1000.0,0.00025421,2]
[386072976,1758211845341,-627.00791338,0.00025421,2]
[386072978,1758211845351,-406.13618103,0.00025421,2]
[386072980,1758211845360,-500.0,0.00025421,2]
[386072982,1758211845369,-693.34991738,0.00025421,2]
[386072984,1758211845379,-1000.0,0.00025421,2]
[386072986,1758211845388,-1000.0,0.00025421,2]
[386072988,1758211845397,-1000.0,0.00025421,2]
[386072990,1758211845407,-1000.0,0.00025421,2]
[386072991,1758211845416,-500.0,0.00025421,2]
[386072993,1758211845426,-500.0,0.00025421,2]
[386072995,1758211845436,-500.0,0.0002548,2]
[386072998,1758211845445,-200.0,0.0002551,7]
[386073000,1758211845455,-506.2363446,0.00025521,2]
[386073002,1758211845465,-1000.0,0.00025521,2]
[386073004,1758211845474,-1000.0,0.00025521,2]
[386073006,1758211845484,-1000.0,0.00025521,2]
[386073007,1758211845494,-1000.0,0.00025521,2]
[386073009,1758211845503,-501.2164168,0.00025521,2]
[386073011,1758211845512,-622.92085283,0.00025521,2]
[386073013,1758211845522,-342.196883,0.00025521,2]
[386073015,1758211845531,-1000.0,0.00025521,2]
[386073017,1758211845540,-460.0,0.00025544,2]
[386073019,1758211845550,-480.0,0.0002559,3]
[386073021,1758211845559,-480.0,0.0002559,3]
[386073023,1758211845569,-480.0,0.0002559,3]
[386073025,1758211845578,-480.0,0.0002559,3]
[386073028,1758211845589,-1178.12,0.0002559,3]
[386073030,1758211845598,-541.13,0.0002559,3]
[386073032,1758211845608,-620.33812168,0.0002559,3]
[386073034,1758211845617,-480.0,0.0002559,3]
[386073036,1758211845627,-500.0,0.00025591,3]
[386073038,1758211845636,-2381.6,0.00025591,3]
[386073040,1758211845646,-720.0,0.00025638,20]
[386073042,1758211845655,-12500.0,0.00025718,7]
[386073044,1758211845665,-12500.0,0.00025727,7]
[386073046,1758211845674,-12500.0,0.00025736,7]
[386073048,1758211845684,-12500.0,0.00025736,7]
[386073050,1758211845694,-500.0,0.00025754,2]
[386073052,1758211845703,-480.0,0.00025864,3]
[386073054,1758211845712,-480.0,0.00025864,3]
[386073056,1758211845721,-480.0,0.00025864,3]
[386073058,1758211845731,-480.0,0.00025864,3]
[386073060,1758211845740,-1178.12,0.00025864,3]
[386073062,1758211845749,-541.13,0.00025864,3]
[386073064,1758211845759,-480.0,0.00025864,3]
[386073066,1758211845769,-500.0,0.00025865,3]
[386073068,1758211845778,-2381.6,0.00025865,3]
[386073070,1758211845787,-1322.0,0.00025879,2]
[386073072,1758211845796,-1500.0,0.00025912,2]
[386073074,1758211845806,-3000.0,0.00025912,2]
[386073076,1758211845817,-1000.0,0.00025921,2]
[386073078,1758211845826,-601.00753204,0.00025921,2]
[386073080,1758211845837,-484.43807732,0.00025921,2]
[386073082,1758211845846,-500.0,0.00025921,2]
[386073084,1758211845856,-500.0,0.00025968,2]
[386073086,1758211845865,-745.17995536,0.00025968,2]
[386073088,1758211845875,-1500.0,0.00025968,2]
[386073090,1758211845887,-247.52443193,0.00025968,2]
[386073092,1758211845897,-1500.0,0.00025968,2]
[386073094,1758211845906,-1500.0,0.00025968,2]
[386073096,1758211845915,-168.0,0.00026,2]
[386073098,1758211845925,-479.0,0.00026015,7]
[386073100,1758211845935,-500.0,0.00026028,2]
[386073102,1758211845944,-1500.0,0.00026068,2]
[386073104,1758211845953,-1500.0,0.00026068,2]
[386073106,1758211845966,-1500.0,0.00026068,2]
[386073108,1758211845976,-1503.49402217,0.00026068,2]
[386073110,1758211845986,-560.0,0.00026092,2]
[386073112,1758211845995,-200.0,0.000261,7]
[386073114,1758211846005,-1000.44019369,0.00026116,2]
[386073116,1758211846014,-150.0,0.00026122,2]
[386073118,1758211846024,-480.0,0.00026138,3]
[386073120,1758211846033,-480.0,0.00026138,3]
[386073122,1758211846042,-480.0,0.00026138,3]
[386073123,1758211846052,-480.0,0.00026138,3]
[386073125,1758211846061,-1178.12,0.00026138,3]
[386073128,1758211846071,-541.13,0.00026138,3]
[386073130,1758211846080,-407.36,0.00026138,3]
[386073132,1758211846091,-500.0,0.00026139,3]
[386073135,1758211846100,-2381.6,0.00026139,3]
[386073136,1758211846109,-1040.18920928,0.00026145,4]
[386073138,1758211846118,-2232.11829807,0.00026182,2]
[386073140,1758211846128,-1849.54390086,0.00026193,2]
[386073142,1758211846138,-479.0,0.00026246,2]
[386073144,1758211846148,-168.0,0.00026256,2]
[386073146,1758211846157,-479.0,0.0002629,2]
[386073148,1758211846167,-479.0,0.00026345,2]
[386073150,1758211846176,-8315.54472507,0.00026354,2]
[386073152,1758211846186,-543.21,0.00026412,3]
[386073154,1758211846195,-480.0,0.00026412,3]
[386073156,1758211846204,-480.0,0.00026412,3]
[386073158,1758211846213,-480.0,0.00026412,3]
[386073160,1758211846223,-1178.12,0.00026412,3]
[386073162,1758211846232,-541.13,0.00026412,3]
[386073164,1758211846241,-500.0,0.00026413,3]
[386073166,1758211846251,-2381.6,0.00026413,3]
[386073168,1758211846260,-479.0,0.00026441,2]
[386073170,1758211846270,-1109.36641102,0.0002646,2]
[386073172,1758211846279,-1503.19520387,0.00026468,2]
[386073174,1758211846289,-1374.61,0.000265,7]
[386073176,1758211846298,-503.87396356,0.00026516,2]
[386073178,1758211846308,-2008.93493663,0.00026516,2]
[386073180,1758211846318,-2000.0,0.00026516,2]
[386073182,1758211846327,-479.0,0.00026567,2]
[386073184,1758211846337,-168.0,0.00026608,2]
[386073186,1758211846347,-479.0,0.00026612,2]
[386073188,1758211846356,-2000.0,0.00026616,2]
[386073190,1758211846366,-863.11128932,0.00026616,2]
[386073192,1758211846375,-2000.0,0.00026616,2]
[386073194,1758211846384,-660.0,0.0002664,2]
[386073196,1758211846394,-250.0,0.0002667,2]
[386073199,1758211846404,-168.0,0.00026682,2]
[386073201,1758211846413,-480.0,0.00026686,3]
[386073203,1758211846423,-480.0,0.00026686,3]
[386073205,1758211846432,-480.0,0.00026686,3]
[386073207,1758211846442,-1178.12,0.00026686,3]
[386073209,1758211846451,-541.13,0.00026686,3]
[386073211,1758211846460,-500.0,0.00026687,3]
[386073213,1758211846471,-2381.6,0.00026687,3]
[386073215,1758211846481,-168.0,0.00026689,2]
[386073217,1758211846491,-151.0,0.000268,17]
[386073219,1758211846500,-479.0,0.00026917,2]
[386073221,1758211846509,-587.0,0.00026934,2]
[386073223,1758211846519,-150.0,0.0002696,2]
[386073225,1758211846528,-480.0,0.0002696,3]
[386073227,1758211846537,-160.0,0.0002696,3]
[386073229,1758211846547,-480.0,0.0002696,3]
[386073231,1758211846556,-1178.12,0.0002696,3]
[386073233,1758211846565,-541.13,0.0002696,3]
[386073235,1758211846576,-500.0,0.00026961,3]
[386073237,1758211846586,-2381.6,0.00026961,3]
[386073239,1758211846595,-479.0,0.00026971,2]
[386073241,1758211846605,-500.0,0.00026973,2]
[386073243,1758211846614,-500.0,0.00026973,2]
[386073245,1758211846623,-500.0,0.0002699,5]
[386073247,1758211846632,-158.766532,0.00027,14]
[386073249,1758211846642,-2500.0,0.00027064,2]
[386073251,1758211846651,-479.0,0.00027077,2]
[386073253,1758211846661,-568.8810341,0.00027152,2]
[386073255,1758211846670,-168.1528048,0.00027152,2]
[386073257,1758211846679,-622.53146165,0.0002716,2]
[386073259,1758211846689,-1300.0,0.00027162,2]
[386073261,1758211846698,-156.39743087,0.00027164,2]
[386073263,1758211846707,-760.0,0.00027188,2]
[386073265,1758211846716,-250.26706273,0.00027218,2]
[386073267,1758211846725,-480.0,0.00027234,3]
[386073269,1758211846735,-480.0,0.00027234,3]
[386073271,1758211846744,-1178.12,0.00027234,3]
[386073273,1758211846753,-541.13,0.00027234,3]
[386073275,1758211846762,-398.0,0.00027235,3]
[386073277,1758211846771,-2381.6,0.00027235,3]
[386073279,1758211846781,-151.0,0.000273,15]
[386073281,1758211846790,-1040.18920928,0.00027394,7]
[386073283,1758211846799,-480.0,0.00027397,2]
[386073285,1758211846809,-5017.24390449,0.00027428,2]
[386073287,1758211846819,-4157.31230316,0.00027449,2]
[386073289,1758211846829,-168.0,0.00027473,2]
[386073291,1758211846840,-480.0,0.00027508,3]
[386073293,1758211846849,-480.0,0.00027508,3]
[386073295,1758211846858,-1178.12,0.00027508,3]
[386073297,1758211846868,-541.13,0.00027508,3]
[386073299,1758211846877,-2381.6,0.00027509,3]
[386073301,1758211846891,-1000.0,0.00027521,5]
[386073303,1758211846901,-479.0,0.00027556,2]
[386073305,1758211846910,-479.0,0.0002768,2]
[386073307,1758211846920,-479.0,0.00027725,2]
[386073309,1758211846929,-860.0,0.00027736,2]
[386073310,1758211846939,-1322.0,0.00027744,7]
[386073313,1758211846948,-480.0,0.00027782,3]
[386073315,1758211846958,-480.0,0.00027782,3]
[386073324,1758211847033,-1178.12,0.00027782,3]
[386073326,1758211847050,-541.13,0.00027782,3]
[386073328,1758211847060,-2381.6,0.00027783,3]
[386073330,1758211847069,-800.0,0.00027801,2]
[386073332,1758211847078,-5478.9718524,0.00027845,2]
[386073334,1758211847088,-479.0,0.00027867,2]
[386073336,1758211847097,-150.06872729,0.00027873,2]
[386073338,1758211847107,-6265.22880153,0.00027873,2]
[386073340,1758211847116,-150.0,0.00027873,5]
[386073342,1758211847126,-800.0,0.00027875,2]
[386073344,1758211847135,-1000.0,0.00027886,5]
[386073346,1758211847144,-201100.05777002,0.000279,2]
[386073373,1758211847399,-480.0,0.0002285,3]
[386073375,1758211847409,-480.0,0.00023124,3]
[386073377,1758211847418,-480.0,0.00023124,3]
[386073379,1758211847427,-480.0,0.00023124,3]
[386073381,1758211847436,-480.0,0.00023398,3]
[386073383,1758211847446,-578.17,0.00023672,3]
[386073385,1758211847455,-500.0,0.00025275,9]
[386073387,1758211847465,-97889.09142586,0.000279,2]
[386074556,1758211871969,19131.19,0.00030412,60]
[386074558,1758211892283,797.47839382,0.000199,2]
[386074559,1758211892388,797.47839378,0.00021149,2]
[386074560,1758211892492,797.47839378,0.00022398,2]
[386074561,1758211933765,177.48,0.00022621,2]
[386074563,1758212008364,157.76,0.00022631,2]
[386074565,1758212073318,167.72585857,0.00022749,2]
[386074566,1758212076723,750.53091306,0.000199,2]
[386074567,1758212076831,750.53091297,0.00021149,2]
[386074568,1758212076942,750.53091297,0.00022398,2]
[386074569,1758212085107,162.2,0.00022631,2]
[386074570,1758212260646,947.01970459,0.000199,2]
[386074571,1758212260687,947.01970433,0.00021149,2]
[386074572,1758212260832,947.01970433,0.00022398,2]
[386074582,1758212341528,419.47286235,0.00022749,2]
[386074589,1758212444290,877.33543117,0.000199,2]
[386074590,1758212444400,877.33543099,0.00021149,2]
[386074591,1758212444576,877.33543099,0.00022398,2]
[386074593,1758212511390,-362.63,0.00022837,10]
[386074594,1758212511421,-727.67,0.00022839,3]
[386074595,1758212511452,-363.83,0.00022839,3]
[386074596,1758212511482,-181.92,0.00022839,3]
[386074597,1758212511513,-545.78,0.00022839,3]
[386074598,1758212511545,-300.0,0.00022843,2]
[386074599,1758212511578,-1200.0,0.00022844,2]
[386074600,1758212511609,-300.0,0.00022844,2]
[386074601,1758212511641,-300.0,0.00022844,2]
[386074602,1758212511672,-236.35,0.00022845,2]
[386074603,1758212511870,-963.65,0.00022845,2]
[386074604,1758212511901,-480.0,0.00022845,2]
[386074605,1758212511933,-480.0,0.00022845,3]
[386074606,1758212511964,-480.0,0.00022845,3]
[386074607,1758212511995,-480.0,0.00022845,3]
[386074608,1758212512025,-480.0,0.00022845,3]
[386074609,1758212512058,-480.0,0.00022845,3]
[386074610,1758212512093,-480.0,0.00022845,3]
[386074611,1758212512124,-480.0,0.00022845,3]
[386074612,1758212512363,-480.0,0.00022845,3]
[386074613,1758212512396,-480.0,0.00022845,3]
[386074614,1758212512428,-480.0,0.00022845,3]
[386074615,1758212512460,-480.0,0.00022845,3]
[386074616,1758212512490,-486.71793417,0.00022845,3]
[386074617,1758212512521,-480.0,0.00022845,3]
[386074618,1758212512552,-500.0,0.00022845,2]
[386074619,1758212512582,-500.0,0.00022845,2]
[386074620,1758212512614,-500.0,0.00022845,2]
[386074621,1758212512644,-500.0,0.00022845,2]
[386074622,1758212513144,-500.0,0.00022845,2]
[386074623,1758212513176,-504.67425285,0.00022845,2]
[386074624,1758212513207,-500.0,0.00022845,2]
[386074625,1758212513236,-617.37086288,0.00022845,2]
[386074626,1758212513268,-500.0,0.00022845,2]
[386074627,1758212513302,-500.0,0.00022845,2]
[386074628,1758212513333,-500.0,0.00022845,2]
[386074629,1758212513364,-500.0,0.00022845,2]
[386074630,1758212513395,-500.0,0.00022845,2]
[386074631,1758212513429,-255.91976854,0.00022845,2]
[386074632,1758212513467,-244.08023146,0.00022845,2]
[386074633,1758212513498,-187.78782616,0.00022845,2]
[386074634,1758212513528,-500.0,0.00022845,2]
[386074635,1758212513561,-500.0,0.00022845,2]
[386074636,1758212513597,-500.0,0.00022845,2]
[386074637,1758212513639,-500.0,0.00022845,2]
[386074638,1758212513678,-500.0,0.00022845,2]
[386074639,1758212513715,-500.0,0.00022845,2]
[386074640,1758212513755,-500.0,0.00022845,2]